{"text_format":"1","workbook":"xlsx","n_sheets":5,"sheets":["Инструкция","Карточка ","Список","Заявление","Копия"],"not_rendered":{"charts":0,"images":4,"macros":1,"external_links":0,"defined_names":0,"comments":2,"pivot_tables":0},"unopened":[],"bounds":{"document_bytes":16777216,"sheet_cells":100000,"rows_first":2000,"rows_last":500,"rows_between":2000,"halvings":0,"cell_chars":16384,"cell_head_chars":4096},"cells_cut":0,"cells_raw":0,"read":"whole","date_system":"1900"}

{"sheet":"Инструкция","index":0,"n_rows":43,"n_cols":4,"rows_kept":43,"cut":false,"hidden":false,"merged":[[23,1,25,1],[23,0,25,0],[42,0,43,2],[3,3,3,7],[27,0,28,0],[27,1,28,1],[4,0,18,0],[4,1,18,1],[0,0,0,2],[4,2,18,2]]}
["ИНСТРУКЦИЯ"]
["№","Действие","Коментарий"]
[1,"Открыть вкладку \"Карточка\", заполнить поля.","Данные необходимы для составления договора. "]
[2,"Открыть вкладку \"Список\", заполнить поля.","Данные каждого участника заполняются строго по порядку. Начиная строго с №1","Вертикальная прокрутка -колесом мыши"]
[]
[]
[]
[]
[]
[]
[]
[]
[]
[]
[]
[]
[]
[]
[]
[3,"Перемещение по списку при заполнении данных","Удобнее всего перемещаться стрелками \"влево-вправо\". \nВерхняя строка списка зафиксирована, для удобства пользования.\nТакже зафиксирована часть поля с данными ФИО и датой рождения, для удобства пользования."]
[null,null,"Также горизонтальное перемещение можно осуществлять мышкой, наведя указатель в нижний правый угол и нажав левую кнопку на необходимую вам стрелку влево или вправо"]
[]
[4,"Заполнение списка","Необходимо заполнить все поля, внимательно.\nПоля выделенные коричневым цветом, заполняются строго из раскрывающегося списка."]
[]
[null,null,"Внимательно заполняйте поля, с маленьким красным треугольником в верхнем правом углу ячейки с наименованием поля. При наведении мыши на данное поле появится подсказка с форматом введения данных. Где поставить пробел или тире."]
[]
[5,"Печать заявлений","После заполнения Списка участников, необходимо рапечать Заявления на каждого участника. В вкладке Список напротив каждого участника есть кнопка Печать. Нажимая кнопку вы выводите заявление того человека, напротив которого стоит кнопка Печать. Автоматически откроется диалоговое окно предварительного просмотра печати. Нажать на значок Печати."]
[null,null,"После печати, закрыть диалоговое окно. Вкладка Список откроется автоматически."]
[null,null,"Последний распечатанный человек будет выделен. Распечатать Заявление следующего по аналогичному сценарию."]
[6,"Порядок предоставления данных"]
[null,"1.","Заполнить Карточку и Список. Сохранить этот файл и отправить по электронной почте указанной ниже. "]
[null,"2.","Сформировать пакет документов, а именно сканированные копии следующих документов и отправить по электронной почте указанной ниже, одним пакетом на всех участников:"]
[null,"2.1.","Заявление на участие (распечать из данного файла, подписать участником)"]
[null,"2.2.","Согласие на обработку персональных данных (распечать из данного файла, подписать участником)"]
[null,"2.3.","Паспорт (первая страница)"]
[null,"2.4.","СНИЛС"]
[null,"2.5.","Документ об образовании (диплом или свидетельство о профессиональном обучении, или аттестат об образовании)"]
[null,"2.6.","Свидетельство о заключении брака (в случае смены фамилии)"]
[null,null,"Сканированные копии документов должны быть одним файлом в PDF формате. Именем файла должна быть фамилия участника. "]
[null,"Электронная почта для отправки","uchcsri@yandex.ru"]
[null,"Контактный телефон","8 (4212) 54-01-25 (добав. 101, 29, 28)"]
[]
["В течении 3-х рабочих дней на электронный адрес будет направлен договор на обучение (скан).\n\nПосле подписания договора на обучение слушатель зачисляется на курс."]

{"sheet":"Карточка ","index":1,"n_rows":15,"n_cols":3,"rows_kept":15,"cut":false,"hidden":false,"merged":[]}
["Полное наименование организации"]
["Должность руководителя",null,"Как в Уставе или ином правоустанавливающем документе. Кто подписывает договора."]
["ФИО руководителя",null,"Кто подписывает договора"]
["Действует на основании",null,"Устав или иной правоустанавливающий документ, на основании которого действует руководитель."]
["Юридический адрес"]
["Фактический адрес (если не совпадает)"]
["ФИО контактного лица",null,"ФИО ответственного за обучение персонала и/или за заполнение данных об участниках обучения"]
["Телефон",null,"Телефон ответственного за обучение персонала и/или за заполнение данных об участниках обучения"]
["Электронная почта",null,"Эл.почта ответственного за обучение персонала и/или за заполнение данных об участниках обучения"]
["ИНН/КПП"]
["ОГРН"]
["БИК банка"]
["Наименование банка"]
["Кор.счет"]
["Расчетный счет"]

{"sheet":"Список","index":2,"n_rows":55,"n_cols":31,"rows_kept":55,"cut":false,"hidden":false,"merged":[[13,0,14,0],[13,22,14,22],[13,25,14,25],[13,26,14,26],[13,28,14,28],[13,23,14,23],[13,24,14,24],[13,27,14,27],[13,30,14,30],[13,19,14,19],[13,1,14,1],[13,2,14,2],[13,3,14,3],[13,4,14,4],[13,5,14,5],[13,11,13,16],[13,6,14,6],[13,10,14,10],[13,7,13,9],[13,17,14,17],[13,18,14,18],[13,29,14,29],[13,20,14,20],[13,21,14,21]]}
[null,null,null,null,null,null,"Муж.",null,null,null,null,null,null,null,null,null,null,null,null,null,"Основное общее",null,null,null,null,"Программа повышения квалификации","Этика общения и особенности взаимодействия с инвалидами и людьми ОВЗ различных нозологических групп",null,"очная","Очно-электронное"]
[null,null,null,null,null,null,"Жен.",null,null,null,null,null,null,null,null,null,null,null,null,null,"Среднее общее",null,null,null,null,"Программа профессиональной подготовки","Сиделка (помощник по уходу)",null,"заочная","Электронное"]
[null,null,null,null,null,null,null,null,null,null,null,null,null,null,null,null,null,null,null,null,"Среднее профессиональное",null,null,null,null,"Программа профессионального обучения","Инновационные технологии и практики социальной работы в организациях социального обслуживания",null,"Очно-заочная"]
[null,null,null,null,null,null,null,null,null,null,null,null,null,null,null,null,null,null,null,null,"Высшее образование",null,null,null,null,null,"Оказание первой помощи пострадавшим"]
[null,null,null,null,null,null,null,null,null,null,null,null,null,null,null,null,null,null,null,null,null,null,null,null,null,null,"Школа родственного ухода"]
[null,null,null,null,null,null,null,null,null,null,null,null,null,null,null,null,null,null,null,null,null,null,null,null,null,null,"Адаптивная физическая культура"]
[null,null,null,null,null,null,null,null,null,null,null,null,null,null,null,null,null,null,null,null,null,null,null,null,null,null,"Помощник по уходу"]
[null,null,null,null,null,null,null,null,null,null,null,null,null,null,null,null,null,null,null,null,null,null,null,null,null,null,"Социальный работник 257 часов"]
[null,null,null,null,null,null,null,null,null,null,null,null,null,null,null,null,null,null,null,null,null,null,null,null,null,null,"Социальное обслуживание на дому: проблемы, организация, технологии"]
[null,null,null,null,null,null,null,null,null,null,null,null,null,null,null,null,null,null,null,null,null,null,null,null,null,null,"Социальный работник 72 часа"]
[null,null,null,null,null,null,null,null,null,null,null,null,null,null,null,null,null,null,null,null,null,null,null,null,null,null,"Основы педагогической деятельности по реализации программ дополнительного профессионального образования"]
[]
[]
[null,"№ п\\п","Фамилия","Имя","Отчество","Дата рождения","Пол \n(выбрать из списка)","Паспорт",null,null,"СНИЛС","Адрес проживания",null,null,null,null,null,"Электронная почта","Телефон","Гражданство","Образование\n(выбрать из списка)","Наименование учебного заведения","Специальность по диплому","Место работы","Должность","Вид образовательной программы\n(выбрать из списка)","Наименование образовательной программы\n(выбрать из списка)","Дата начала проведения","Форма обучения\n(выбрать из списка)","Технология обучения\n(выбрать из списка)","Дата заявления"]
[null,null,null,null,null,null,null,"Серия Номер","Дата выдачи","Кем выдан",null,"Индекс","Регион","Город","Улица","Дом","Квартира"]
[null,1]
[null,2]
[null,3]
[null,4]
[null,5]
[null,6]
[null,7]
[null,8]
[null,9]
[null,10]
[null,11]
[null,12]
[null,13]
[null,14]
[null,15]
[null,16]
[null,17]
[null,18]
[null,19]
[null,20]
[null,21]
[null,22]
[null,23]
[null,24]
[null,25]
[null,26]
[null,27]
[null,28]
[null,29]
[null,30]
[null,31]
[null,32]
[null,33]
[null,34]
[null,35]
[null,36]
[null,37]
[null,38]
[null,39]
[null,40]

{"sheet":"Заявление","index":3,"n_rows":95,"n_cols":5,"rows_kept":95,"cut":false,"hidden":false,"merged":[[91,1,91,2],[93,1,93,4],[94,1,94,4],[56,0,56,5],[57,0,57,5],[59,0,59,5],[61,1,61,5],[62,1,62,5],[63,0,64,0],[63,1,64,5],[49,1,49,3],[49,4,49,5],[51,1,51,3],[51,4,51,5],[53,0,53,5],[54,0,54,5],[23,1,23,5],[25,0,25,5],[26,0,27,5],[28,1,28,5],[29,1,29,5],[30,1,30,5],[15,1,15,5],[16,0,16,5],[17,0,17,5],[19,0,19,5],[21,1,21,5],[22,1,22,5],[8,1,8,5],[9,1,9,5],[11,1,11,5],[12,1,12,5],[13,1,13,5],[14,1,14,5],[0,0,0,5],[1,0,1,5],[3,0,3,5],[5,1,5,5],[6,1,6,5],[7,1,7,5]]}
["Директору КГБУ \"ХЦСРИ\""]
["Козловой А.С."]
[]
["ЗАЯВЛЕНИЕ"]
[]
["Фамилия",{"$f":"Копия!C3","v":40}]
["Имя",{"$f":"Копия!D3","v":0}]
["Отчество",{"$f":"Копия!E3","v":0}]
["Дата рождения",{"$f":"Копия!F3","v":"00:00:00"}]
["Пол",{"$f":"Копия!G3","v":0}]
[]
["Гражданство",{"$f":"Копия!T3","v":0}]
["Телефон",{"$f":"Копия!S3","v":0}]
["Электронная почта",{"$f":"Копия!R3","v":0}]
["Место работы",{"$f":"Копия!X3","v":0}]
["Должность",{"$f":"Копия!Y3","v":0}]
["Домашний адрес"]
[{"$f":"CONCATENATE(Копия!L3&\" \"&Копия!M3&\", \"&Копия!N3&\", \"&Копия!O3&\", \"&Копия!P3&\", \"&Копия!Q3)","v":" , , , , "}]
[]
["Сведения о предыдущем уровне образования"]
[]
["Образование",{"$f":"Копия!U3","v":0}]
["Наименование учебного заведения",{"$f":"Копия!V3","v":0}]
["Специальность по диплому",{"$f":"Копия!W3","v":0}]
[]
["Прошу зачислить меня на обучение по образовательной программе дополнительного профессионального образования/профессионального обучения: "]
[{"$f":"Копия!AA3","v":0}]
[]
["Образовательная программа",{"$f":"Копия!Z3","v":0}]
["Форма обучения",{"$f":"Копия!AC3","v":0}]
["Технология обучения",{"$f":"Копия!AD3","v":0}]
[]
[]
[]
[]
[]
[]
[]
[]
[]
[]
[]
[]
[]
[]
[]
[]
[]
[]
[null,"подпись слушателя"]
[]
[null,"дата заявления",null,null,{"$f":"Копия!AE3","v":"00:00:00"}]
[]
["Согласие гражданина на обработку персональных данных"]
[{"$f":"\"Я, \"&CONCATENATE(B6&\" \"&B7&\" \"&B8)","v":"Я, 40 0 0"}]
[]
["проживающ(ий/ая) по адресу:"]
[{"$f":"A18","v":" , , , , "}]
[]
["Паспортные данные"]
[]
["Серия / номер",{"$f":"Копия!H3","v":0}]
["Дата выдачи",{"$f":"Копия!I3","v":"00:00:00"}]
["Кем выдан",{"$f":"Копия!J3","v":0}]
[]
[]
[]
[]
[]
[]
[]
[]
[]
[]
[]
[]
[]
[]
[]
[]
[]
[]
[]
[]
[]
[]
[]
[]
[]
[]
[]
["дата заявления",{"$f":"E52","v":"00:00:00"}]
[]
[null,"/"]
["(подпись)","(расшифровка подписи)"]

{"sheet":"Копия","index":4,"n_rows":9,"n_cols":8,"rows_kept":9,"cut":false,"hidden":false,"merged":[[8,7,9,10]]}
[]
[]
[null,40,40]
[]
[]
[]
[]
[]
[null,null,null,null,null,null,null,"технический лист"]